bitfinex/quotes_ETHUSD_20220309
["timestamp","ask_amount","ask_price","bid_price","bid_amount"]
[1646788475631,1.56909915,2598.0,2597.5,1.06380266]
[1646788475832,0.49257369,2597.9,2597.5,1.06380266]
[1646788476035,1.07648969,2598.0,2597.9,0.67593861]
[1646788476036,1.07271046,2598.0,2597.9,0.67593861]
[1646788476285,0.49258471,2598.0,2597.9,1.73974127]
[1646788476676,0.49258471,2598.1,2597.9,1.73974127]
[1646788476876,0.49258471,2598.0,2597.9,0.67593861]
[1646788477078,3.9,2598.2,2597.9,1.73921621]
[1646788477079,0.49258471,2598.1,2597.9,1.73921621]
[1646788477279,0.49258471,2598.0,2597.9,0.67593861]
[1646788477681,0.49636479,2598.1,2597.9,1.73916932]
[1646788477881,0.49258471,2598.0,2597.9,0.67593861]
[1646788478082,0.49636479,2598.1,2597.9,1.73919631]
[1646788478283,0.49636479,2598.1,2598.0,1.0632577]
[1646788478482,0.49258471,2598.1,2598.0,1.0632577]
[1646788478684,0.49636803,2598.1,2598.0,1.0632577]
[1646788479682,0.49258471,2598.1,2598.0,1.0632577]
[1646788480828,0.49258471,2598.1,2598.0,3.4132577]
[1646788481030,0.4916773,2598.1,2598.0,3.4132577]
[1646788481428,3.90378237,2598.2,2598.0,3.4132577]
[1646788481629,3.90378237,2598.2,2598.0,2.35]
[1646788482028,3.9,2598.2,2598.0,2.35]
[1646788482229,3.91676644,2598.2,2598.0,2.35]
[1646788482529,3.92056242,2598.2,2598.0,2.35]
[1646788483433,3.91676644,2598.2,2598.0,2.35]
[1646788483633,3.92056242,2598.2,2598.0,2.35]
[1646788484480,3.91676644,2598.2,2598.0,2.35]
[1646788484878,3.92056217,2598.2,2598.0,2.35]
[1646788485678,3.91676644,2598.2,2598.0,2.35]
[1646788485879,3.92054322,2598.2,2598.0,2.35]
[1646788486878,3.91676644,2598.2,2598.0,2.35]
[1646788487280,3.92054322,2598.2,2598.0,2.35]
[1646788487523,3.92054322,2598.2,2598.0,2.3]
[1646788487926,3.92054322,2598.2,2598.0,2.29878122]
[1646788488227,3.91676644,2598.2,2598.0,2.29878122]
[1646788488428,3.92054373,2598.2,2598.0,2.29878122]
[1646788489228,3.91676644,2598.2,2598.0,2.29878122]
[1646788489629,3.92054649,2598.2,2598.0,2.29878122]
[1646788490429,3.91676644,2598.2,2598.0,2.29878122]
[1646788490828,3.92054649,2598.2,2598.0,2.29878122]
[1646788491681,4.62011151,2598.2,2598.0,2.29878122]
[1646788492082,0.70334507,2598.1,2598.0,2.29878122]
[1646788492280,0.01676644,2598.1,2598.0,2.29878122]
[1646788496133,0.01676644,2598.1,2598.0,0.61729558]
[1646788501080,0.47825325,2598.1,2598.0,0.61729558]
[1646788502381,0.5,2597.9,2597.2,0.43864313]
[1646788502641,0.70698901,2597.6,2597.2,0.24634313]
[1646788503136,0.46148681,2597.7,2596.8,0.3848]
[1646788503137,1.16847582,2597.5,2596.8,0.3848]
[1646788503337,0.46148681,2597.4,2596.9,1.06660036]
[1646788503538,1.49739293,2597.3,2596.9,1.06660036]
[1646788503739,1.49739293,2597.3,2596.3,0.00064397]
[1646788503740,3.96345,2597.1,2596.3,0.00064397]
[1646788503939,0.46148681,2597.0,2596.3,0.00064397]
[1646788504541,0.47825325,2597.0,2596.3,0.00064397]
[1646788504739,0.99446107,2596.6,2596.3,0.00064397]
[1646788505038,0.46148681,2596.5,2596.3,0.00064397]
[1646788505238,0.46148681,2596.5,2596.3,1.02872226]
[1646788505440,0.0037844,2596.8,2596.4,1.02807829]
[1646788505637,0.0037844,2596.8,2596.5,1.02807829]
[1646788505840,0.0037844,2596.8,2596.6,1.02807829]
[1646788506038,0.0037844,2596.8,2596.7,1.02807829]
[1646788506289,0.01676644,2597.0,2596.7,1.02807829]
[1646788506290,0.52922162,2596.9,2596.8,1.17678622]
[1646788506478,0.01676644,2597.0,2596.8,2.20486451]
[1646788506677,0.01676644,2597.0,2596.8,1.17678622]
[1646788507480,0.01676644,2597.0,2596.4,1.26315]
[1646788507681,0.02054266,2597.0,2596.5,1.02491052]
[1646788507886,0.02054266,2597.0,2596.3,0.00064397]
[1646788507887,11.77,2596.6,2596.3,0.00064397]
[1646788508082,0.52882228,2596.5,2596.3,0.00064397]
[1646788508680,0.5023,2596.6,2596.3,0.00064397]
[1646788508881,0.3,2596.7,2596.6,0.02238934]
[1646788509082,4.02841965,2596.7,2596.6,0.02238934]
[1646788509281,0.52841965,2596.7,2596.6,0.02238934]
[1646788509584,4.42841965,2596.7,2596.6,0.02238934]
[1646788509781,7.92841965,2596.7,2596.6,0.02238934]
[1646788510028,4.42841965,2596.7,2596.6,0.02238934]
[1646788510229,3.9,2596.7,2596.6,0.02238934]
[1646788510526,4.4277873,2596.7,2596.6,0.02238934]
[1646788510927,4.42777131,2596.7,2596.6,0.02238934]
[1646788511331,3.9,2596.7,2596.6,0.02238934]
[1646788513980,3.9,2596.7,2596.6,0.04165264]
[1646788514279,4.1360287,2596.7,2596.6,0.04165264]
[1646788514479,7.6360287,2596.7,2596.6,0.04165264]
[1646788515081,8.16335445,2596.7,2596.6,0.04165264]
[1646788515281,7.6360287,2596.7,2596.6,0.04165264]
[1646788515484,8.16320629,2596.7,2596.6,0.04165264]
[1646788516185,8.46320629,2596.7,2596.6,0.0135244]
[1646788519132,4.96320629,2596.7,2596.6,0.02238934]
[1646788519532,8.46320629,2596.7,2596.6,0.02238934]
[1646788520333,8.46213577,2596.7,2596.6,0.02238934]
[1646788520538,7.9360287,2596.7,2596.6,0.02238934]
[1646788521979,8.4620531,2596.7,2596.6,0.02238934]
[1646788523584,8.4620531,2596.7,2596.3,0.00064397]
[1646788523783,1.00840485,2596.5,2596.3,0.00064397]
[1646788524385,0.2360287,2596.4,2596.3,0.00064397]
[1646788525631,15.5060287,2596.4,2596.3,0.00064397]
[1646788525832,16.5870627,2596.4,2596.3,0.00064397]
[1646788526431,0.5,2596.1,2595.3,0.385]
[1646788526631,0.96415,2595.2,2594.0,0.70414601]
[1646788526830,0.96415,2595.2,2594.1,1.02199861]
[1646788527031,0.96415,2595.2,2594.2,1.02199861]
[1646788527230,3.5,2595.1,2594.3,1.02199861]
[1646788527432,14.77,2594.7,2593.9,3.69456764]
[1646788527635,12.325,2594.6,2593.9,3.69456764]
[1646788527838,12.325,2594.6,2593.4,0.24670434]
[1646788527839,0.96579123,2594.3,2593.7,1.00974287]
[1646788528239,0.555,2594.4,2593.8,0.98705626]
[1646788528440,0.3853,2594.8,2593.9,0.98544616]
[1646788528636,1.2438,2594.9,2593.7,1.00974287]
[1646788528884,1.5438,2594.9,2593.8,0.98562612]
[1646788529286,0.9643,2594.8,2594.2,0.00437541]
[1646788529486,1.2438,2594.9,2594.2,0.00437541]
[1646788529686,0.2360287,2594.6,2594.2,0.00437541]
[1646788530185,0.2360287,2594.6,2594.1,0.154362]
[1646788530388,0.2360287,2594.6,2594.1,1.02282201]
[1646788530584,0.2360287,2594.6,2594.3,0.00437536]
[1646788531285,0.2360287,2594.6,2594.1,1.02282201]
[1646788531687,0.2360287,2594.6,2594.3,0.00437531]
[1646788532387,0.2360287,2594.6,2594.5,0.97194279]
[1646788532636,0.2360287,2594.6,2594.2,0.3853]
[1646788532835,0.2360287,2594.6,2594.3,0.00437531]
[1646788533835,0.2360287,2594.6,2594.3,1.08063673]
[1646788534035,0.2360287,2594.6,2594.3,1.08486065]
[1646788534637,4.94171893,2595.0,2594.3,1.08486065]
[1646788534837,0.2360287,2594.6,2594.3,1.08486065]
[1646788535035,0.2360287,2594.6,2594.3,1.08063673]
[1646788535235,0.2360287,2594.6,2594.3,1.08486065]
[1646788536288,2.4528414,2595.0,2594.3,1.08063673]
[1646788536479,2.4528414,2595.0,2594.3,1.08486065]
[1646788537281,2.4528414,2595.0,2594.7,0.97279769]
[1646788537480,2.4528414,2595.0,2594.2,4.1853]
[1646788537683,2.4528414,2595.0,2594.5,0.00423255]
[1646788538484,2.4528414,2595.0,2594.1,0.3853]
[1646788538686,2.4528414,2595.0,2594.4,0.88547656]
[1646788538885,2.4528414,2595.0,2594.6,0.00423245]
[1646788539586,2.4028414,2595.0,2594.6,0.00423245]
[1646788539786,2.4028414,2595.0,2594.4,0.88547656]
[1646788540031,2.4028414,2595.0,2594.7,0.0042324]
[1646788541034,2.4028414,2595.0,2594.5,3.5]
[1646788541233,2.4028414,2595.0,2594.7,0.00403251]
[1646788541432,2.4028414,2595.0,2594.7,3.50403251]
[1646788541634,2.4028414,2595.0,2594.8,1.33903947]
[1646788541831,2.4028414,2595.0,2594.9,1.33942569]
[1646788542032,2.4028414,2595.0,2594.9,2.22438888]
[1646788542635,2.4028414,2595.0,2594.9,0.95401407]
[1646788543036,2.4028414,2595.0,2594.9,0.94981307]
[1646788543235,2.4028414,2595.0,2594.8,0.30403246]
[1646788543437,2.4028414,2595.0,2594.5,0.3853]
[1646788543635,2.4028414,2595.0,2594.8,0.00403242]
[1646788544687,2.4028414,2595.0,2594.0,1.2069]
[1646788544886,2.4028414,2595.0,2594.8,0.00404595]
[1646788545887,2.4028414,2595.0,2594.6,1.10945064]
[1646788546089,2.4028414,2595.0,2594.8,0.00404595]
[1646788547090,2.4028414,2595.0,2594.2,0.96399]
[1646788547288,2.4028414,2595.0,2594.3,1.02853833]
[1646788547531,2.4028414,2595.0,2594.8,0.00404595]
[1646788548141,2.4028414,2595.0,2594.4,0.96388]
[1646788548538,2.4028414,2595.0,2594.8,0.00404504]
[1646788549441,2.4028414,2595.0,2594.6,0.15433]
[1646788549740,2.4028414,2595.0,2594.8,0.00404504]
[1646788550640,2.4028414,2595.0,2594.2,0.96399]
[1646788550840,2.4028414,2595.0,2594.8,0.00404504]
[1646788551042,1.23006253,2594.9,2594.8,0.00404504]
[1646788551882,1.23006253,2594.9,2594.4,1.04818142]
[1646788552081,1.23006253,2594.9,2594.7,0.00374308]
[1646788553085,1.23006253,2594.9,2593.8,1.5437]
[1646788553284,1.23006253,2594.9,2594.7,0.00374312]
[1646788553687,1.23006253,2594.9,2593.8,1.10179212]
[1646788554086,1.23006253,2594.9,2594.1,1.21451985]
[1646788555730,1.23006253,2594.9,2594.4,0.00243182]
[1646788556129,2.4028414,2595.0,2594.4,0.00243182]
[1646788556532,2.4028414,2595.0,2594.1,1.21451985]
[1646788556930,2.4028414,2595.0,2594.6,0.00407042]
[1646788557129,1.08084692,2594.8,2594.6,0.00407042]
[1646788557932,1.08084692,2594.8,2594.1,1.21451985]
[1646788558335,1.08084692,2594.8,2594.6,0.00407042]
[1646788558983,1.08084692,2594.8,2594.1,1.21451985]
[1646788559186,1.08084692,2594.8,2594.6,0.0040504]
[1646788559787,1.08084692,2594.8,2594.1,1.16857025]
[1646788560785,1.08084692,2594.8,2593.9,0.154358]
[1646788560986,3.5,2594.7,2593.8,1.10179212]
[1646788561187,3.8853,2594.7,2593.7,3.6251]
[1646788561588,3.8853,2594.7,2593.5,1.2216]
[1646788561788,3.8853,2594.7,2593.6,1.11547404]
[1646788561789,1.01858873,2594.2,2593.6,1.11547404]
[1646788561988,1.15638396,2594.6,2594.5,0.24341601]
[1646788564938,5.35727497,2595.0,2594.9,3.61411604]
[1646788565139,4.16281443,2595.0,2594.9,3.61411604]
[1646788565339,4.46281443,2595.0,2594.9,3.61411604]
[1646788565740,5.34565084,2595.0,2594.9,3.61411604]
[1646788567192,3.6141,2594.9,2594.5,0.24763046]
[1646788567388,0.96439,2594.7,2594.5,0.24341601]
[1646788567590,1.51939,2594.7,2594.5,0.24341601]
[1646788568191,1.48143749,2594.6,2594.5,0.24341601]
[1646788568491,2.03643749,2594.6,2594.5,0.24341601]
[1646788571335,2.03643749,2594.6,2594.4,6.974e-05]
[1646788571336,5.0,2594.5,2594.4,6.974e-05]
[1646788571539,19.25402,2594.5,2594.4,6.974e-05]
[1646788571738,22.62361312,2594.5,2594.4,6.974e-05]
[1646788571940,22.81297904,2594.5,2594.4,6.974e-05]
[1646788572339,22.81297904,2594.5,2593.4,0.94217575]
[1646788572340,23.19858214,2594.5,2593.4,0.94217575]
[1646788572539,0.87473604,2593.6,2593.4,0.94217575]
[1646788572941,0.87473604,2593.6,2593.5,0.94217575]
[1646788573342,0.87473604,2593.6,2593.2,0.94217575]
[1646788573547,0.87473604,2593.6,2593.3,0.94217575]
[1646788573797,0.87473604,2593.6,2593.4,0.94217575]
[1646788574388,0.87473604,2593.6,2592.3,10.91032239]
[1646788574389,1.83946604,2593.6,2592.7,0.70414601]
[1646788574588,0.65180366,2593.5,2592.8,0.91201624]
[1646788574791,0.65180366,2593.5,2592.9,0.86201624]
[1646788574988,0.65180366,2593.5,2592.4,0.70414601]
[1646788575386,1.2221177,2593.1,2592.6,0.89939233]
[1646788575586,1.92973,2593.5,2592.6,0.89939233]
[1646788576286,1.9296044,2593.6,2592.7,0.00437264]
[1646788576486,0.96473,2593.6,2592.7,0.00437264]
[1646788576687,1.00703188,2593.3,2592.7,0.00437264]
[1646788577089,1.00703188,2593.3,2592.6,0.89939233]
[1646788577292,1.00703188,2593.3,2592.9,0.00437248]
[1646788578336,17.12718188,2593.3,2592.1,0.70414601]
[1646788578535,17.12718188,2593.3,2591.9,0.93179413]
[1646788578536,15.1553,2593.1,2593.0,0.00437238]
[1646788578735,15.625,2593.1,2593.0,0.00437238]
[1646788578933,16.625,2593.1,2593.0,0.00437238]
[1646788579534,6.3672,2593.1,2592.0,0.89953636]
[1646788579733,1.02799384,2592.5,2591.7,0.70414601]
[1646788579938,1.02799384,2592.5,2591.7,0.154492]
[1646788580434,1.02799384,2592.5,2591.6,0.01749833]
[1646788580735,0.91680568,2591.9,2591.4,5.26139115]
[1646788580948,0.91680568,2591.9,2591.3,8.06414601]
[1646788581135,0.91680568,2591.9,2591.6,0.01697136]
[1646788581784,0.91680568,2591.9,2590.9,0.91161269]
[1646788581785,1.06546552,2591.4,2590.9,0.91161269]
[1646788581985,12.933,2592.0,2591.9,0.23419622]
[1646788582187,15.41892,2592.0,2590.9,3.5]
[1646788582489,15.41892,2592.0,2590.3,2.8633]
[1646788582490,0.9654741,2591.7,2590.5,4.20414601]
[1646788583092,0.9654741,2591.7,2590.5,3.5]
[1646788583393,0.9654741,2591.7,2591.0,1.13125959]
[1646788583793,0.96539,2591.9,2591.0,1.13125959]
[1646788584393,4.0592929,2592.0,2591.7,1.12254255]
[1646788584394,1.163,2592.0,2591.7,1.12254255]
[1646788585043,3.276186,2592.8,2591.7,1.12254255]
[1646788585336,2.9263,2592.7,2591.8,3.5]
[1646788585536,2.9263,2592.7,2591.7,1.12254255]
[1646788585935,0.00436809,2592.3,2591.7,1.12254255]
[1646788586736,1.09620531,2592.4,2591.7,1.12254255]
[1646788586936,1.09620531,2592.4,2591.5,0.00436941]
[1646788586937,0.00436813,2592.2,2591.5,0.00436941]
[1646788587945,1.09620531,2592.4,2591.2,1.60829755]
[1646788588142,0.96516,2592.5,2591.5,0.00436932]
[1646788588143,1.04955354,2591.9,2591.5,0.00436932]
[1646788588541,0.00436803,2592.2,2591.5,0.00436932]
[1646788589182,1.9303435,2592.5,2591.3,1.05712417]
[1646788589382,0.00436803,2592.2,2591.5,0.00436932]
[1646788589582,0.00436803,2592.2,2591.7,1.19475853]
[1646788589783,0.00436803,2592.2,2591.5,0.00436932]
[1646788590191,3.90436803,2592.2,2591.5,0.00436932]
[1646788590386,3.90436803,2592.2,2591.2,0.40749755]
[1646788590387,3.9,2592.2,2591.2,0.40749755]
[1646788590584,3.9,2592.2,2591.2,0.02219755]
[1646788590786,3.90405595,2592.2,2591.5,0.00405714]
[1646788591184,3.90405595,2592.2,2591.5,0.99568377]
[1646788591584,3.90405595,2592.2,2591.5,0.99162663]
[1646788591585,3.9,2592.2,2591.5,0.99162663]
[1646788591786,3.9,2592.2,2591.5,0.99568377]
[1646788591985,3.90405595,2592.2,2591.5,0.99568377]
[1646788592384,3.90405595,2592.2,2591.5,0.00405714]
[1646788592635,3.90405595,2592.2,2591.3,0.3853]
[1646788592839,3.9,2592.2,2591.3,0.3853]
[1646788593037,3.9039221,2592.2,2591.5,0.00392325]
[1646788594039,3.9,2592.2,2591.4,0.86674198]
[1646788594242,3.90394922,2592.2,2591.5,0.00395038]
[1646788595139,3.90394922,2592.2,2591.8,0.97706317]
[1646788595140,3.9,2592.2,2591.8,0.97706317]
[1646788595344,3.90394922,2592.2,2591.8,0.97706317]
[1646788596396,3.9,2592.2,2591.8,0.97706317]
[1646788596596,3.90375067,2592.2,2591.8,0.97706317]
[1646788596995,3.90375067,2592.2,2591.8,1.94189317]
[1646788597495,3.9,2592.2,2591.8,1.94189317]
[1646788597903,3.90375123,2592.2,2591.8,0.97706317]
[1646788598701,3.9,2592.2,2591.8,0.97706317]
[1646788598903,3.90375123,2592.2,2591.7,0.3]
[1646788599104,3.90375123,2592.2,2591.5,0.19655233]
[1646788599304,3.90375123,2592.2,2591.5,0.00375233]
[1646788599703,3.90375123,2592.2,2591.5,0.84343612]
[1646788599906,3.9,2592.2,2591.5,0.83968379]
[1646788600136,0.89852052,2591.9,2591.5,0.84345241]
[1646788600332,0.89852052,2591.9,2591.5,0.00376862]
[1646788600533,3.90376751,2592.2,2591.5,0.84375242]
[1646788600732,3.90376751,2592.2,2591.5,3.50376862]
[1646788601134,3.9,2592.2,2591.5,3.5]
[1646788601332,3.9037741,2592.2,2591.5,3.50377521]
[1646788602033,2.2192123,2592.2,2591.5,3.50377521]
[1646788602433,2.2154382,2592.2,2591.4,0.3]
[1646788602636,2.2192123,2592.2,2591.5,0.00377521]
[1646788603536,2.2154382,2592.2,2591.4,0.80979195]
[1646788603797,2.2154382,2592.2,2591.5,0.00377091]
[1646788603798,3.184488,2592.2,2591.5,0.00377091]
[1646788604186,1.02620989,2592.1,2591.5,0.00377091]
[1646788604787,1.02620989,2592.1,2591.4,0.80966478]
[1646788604988,1.02620989,2592.1,2591.5,0.00377762]
[1646788605987,1.02620989,2592.1,2591.4,0.80966478]
[1646788606187,1.02620989,2592.1,2591.5,0.00377762]
[1646788607188,1.02620989,2592.1,2591.4,0.80966478]
[1646788607388,1.02620989,2592.1,2591.5,0.00378953]
[1646788608441,1.02620989,2592.1,2591.3,1.09761471]
[1646788608638,1.02620989,2592.1,2591.5,0.00378922]
[1646788608938,2.21922631,2592.2,2591.5,0.00378922]
[1646788609639,2.2154382,2592.2,2591.4,0.81127291]
[1646788609838,2.2154382,2592.2,2591.5,0.00378925]
[1646788609839,2.21922634,2592.2,2591.5,0.00378925]
[1646788610838,2.21922634,2592.2,2591.4,0.81127291]
[1646788610839,2.2154382,2592.2,2591.4,0.81127291]
[1646788611040,2.21922475,2592.2,2591.5,0.00378766]
[1646788612094,1.05230618,2591.9,2591.4,0.81127291]
[1646788612288,1.05230618,2591.9,2591.5,0.00378649]
[1646788613091,1.05230618,2591.9,2591.2,0.8937159]
[1646788613293,1.05230618,2591.9,2591.3,0.81326746]
[1646788613491,1.05230618,2591.9,2591.5,0.00378641]
[1646788614392,2.01771618,2591.9,2591.3,0.81326746]
[1646788614592,2.01771618,2591.9,2591.5,0.00378662]
[1646788615738,2.01771618,2591.9,2591.3,0.81326746]
[1646788615939,2.01771618,2591.9,2591.5,0.00378683]
[1646788616344,1.05230618,2591.9,2591.5,0.00378683]
[1646788616740,1.05230618,2591.9,2591.4,0.81326746]
[1646788616939,1.5203777,2592.1,2591.4,0.81326746]
[1646788616940,0.555,2592.1,2591.5,0.00378683]
[1646788617142,0.74584203,2592.0,2591.5,0.81705429]
[1646788617340,4.37223134,2592.2,2591.5,0.81705429]
[1646788617541,0.74585836,2592.1,2591.5,0.81705429]
[1646788617947,0.74585836,2592.1,2591.5,0.81326746]
[1646788618146,0.74585836,2592.1,2591.5,0.81705432]
[1646788618544,0.74585836,2592.1,2591.5,4.31705432]
[1646788618809,0.74585836,2592.1,2591.6,4.31326746]
[1646788619002,0.74585836,2592.1,2591.7,0.81326746]
[1646788619498,1.88080613,2592.1,2591.8,0.81326746]
[1646788619697,1.13494777,2592.1,2591.9,0.81326746]
[1646788619897,2.21922394,2592.2,2591.5,0.00378685]
[1646788619898,2.21922394,2592.2,2592.0,0.81326746]
[1646788620103,0.74707264,2592.1,2591.5,3.50378685]
[1646788620297,0.74707264,2592.1,2591.6,0.81629299]
[1646788621402,0.98091263,2592.0,2591.6,0.81629299]
[1646788621999,2.21922394,2592.2,2592.0,0.04781931]
[1646788622199,0.74767951,2592.1,2592.0,0.04781931]
[1646788622642,0.74767951,2592.1,2592.0,0.84663783]
[1646788622843,0.74767951,2592.1,2592.0,0.04781931]
[1646788623542,0.74767951,2592.1,2592.0,0.84796071]
[1646788624145,0.74767951,2592.1,2592.0,0.04781931]
[1646788624342,1.94071123,2592.1,2592.0,0.04781931]
[1646788624942,1.94071123,2592.1,2592.0,0.84831153]
[1646788625443,3.13171123,2592.1,2592.0,0.84800249]
[1646788625645,1.93867951,2592.1,2592.0,0.84800249]
[1646788633652,1.93867951,2592.1,2592.0,4.34800249]
[1646788634395,1.93867951,2592.1,2592.0,0.84800249]
[1646788634596,1.191,2592.1,2592.0,0.84800249]
[1646788634993,1.191,2592.1,2592.0,1.23330249]
[1646788635993,1.191,2592.1,2592.0,4.73330249]
[1646788638046,2.21922404,2592.2,2592.0,4.73330249]
[1646788638246,2.21922404,2592.2,2592.1,1.68554881]
[1646788638448,2.2154382,2592.2,2592.1,1.68554881]
[1646788638649,2.21922404,2592.2,2592.1,1.68554881]
[1646788639650,2.2154382,2592.2,2592.1,1.68554881]
[1646788642090,1.29802147,2592.2,2592.1,1.68554881]
[1646788643795,0.53104444,2592.2,2592.1,1.68554881]
[1646788644795,1.32943583,2592.2,2592.1,5.18554881]
[1646788645052,0.53104444,2592.2,2592.1,5.87084881]
[1646788645253,0.53104444,2592.2,2592.1,6.12584881]
[1646788645850,0.53104444,2592.2,2592.1,5.74054881]
[1646788649092,0.53104444,2592.2,2592.1,2.24054881]
[1646788649295,0.53104444,2592.2,2592.1,1.68554881]
[1646788649494,0.53104444,2592.2,2592.1,5.18554881]
[1646788650396,0.53104444,2592.2,2592.1,1.68554881]
[1646788651794,0.53104444,2592.2,2592.1,0.80018318]
[1646788656148,0.53104444,2592.2,2592.1,4.30018318]
[1646788658504,0.53104444,2592.2,2592.1,0.80018318]
[1646788659703,1.32893625,2592.2,2592.1,0.80018318]
[1646788661547,1.32893625,2592.2,2592.1,0.76628731]
[1646788662146,4.82893625,2592.2,2592.0,0.04781931]
[1646788662348,4.29789181,2592.1,2592.0,0.04571501]
[1646788663354,0.79789181,2592.1,2592.0,0.04571501]
[1646788664393,0.79789181,2592.1,2592.0,0.81751819]
[1646788664592,0.14236785,2592.1,2592.0,0.81751819]
[1646788664793,0.14236785,2592.1,2592.0,0.04571501]
[1646788667945,0.73384949,2592.1,2592.0,0.04571501]
[1646788668945,1.65613159,2592.1,2592.0,0.04571501]
[1646788670544,1.60613159,2592.1,2592.0,0.04571501]
[1646788671597,0.68384949,2592.1,2592.0,0.04571501]
[1646788672597,0.09236785,2592.1,2592.0,0.04571501]
[1646788673903,1.27747104,2592.1,2592.0,0.04571501]
[1646788676645,1.85014517,2592.1,2592.0,0.04571501]
[1646788679412,5.0,2592.0,2591.0,1.2318]
[1646788679611,0.96542,2591.9,2591.5,0.00405264]
[1646788680410,0.9322,2592.0,2591.5,0.00405264]
[1646788680411,1.11853209,2591.7,2591.5,0.00405264]
[1646788680610,0.9322,2592.0,2591.0,2.43857836]
[1646788680811,0.3772,2592.0,2591.5,0.00405241]
[1646788681814,1.15627139,2591.8,2591.0,3.14272437]
[1646788682011,1.15627139,2591.8,2591.5,0.00405244]
[1646788682854,1.15627139,2591.8,2591.0,2.43857836]
[1646788683054,1.15627139,2591.8,2591.1,1.93031]
[1646788683358,1.15627139,2591.8,2591.5,0.00405237]
[1646788684158,1.15627139,2591.8,2591.1,1.93031]
[1646788684357,1.15627139,2591.8,2591.5,0.00405237]
[1646788684558,1.92577139,2591.8,2591.5,0.00405237]
[1646788685358,1.92577139,2591.8,2591.1,1.93031]
[1646788685558,1.92577139,2591.8,2591.5,0.00405237]
[1646788686399,1.92577139,2591.8,2591.1,1.93031]
[1646788686903,1.92577139,2591.8,2591.5,0.00405238]
[1646788687197,0.7695,2591.8,2591.5,0.00405238]
[1646788687398,0.3772,2592.0,2591.5,0.00405238]
[1646788687601,0.3772,2592.0,2591.4,1.26516]
[1646788688002,0.3772,2592.0,2591.5,0.00405238]
[1646788688502,0.3772,2592.0,2591.6,1.20586086]
[1646788690551,0.77962844,2591.9,2591.7,0.78262282]
[1646788690751,0.77962844,2591.9,2591.5,0.30405247]
[1646788690951,0.77665192,2591.6,2591.5,0.30405247]
[1646788691151,0.77665192,2591.6,2591.5,0.00405247]
[1646788691352,1.55628036,2591.6,2591.1,0.7827454]
[1646788691550,1.55628036,2591.6,2590.9,0.1928]
[1646788691551,0.77976669,2591.5,2591.2,1.85971293]
[1646788691751,0.77665192,2591.6,2591.3,0.7827454]
[1646788692856,0.77665192,2591.6,2591.3,0.78679789]
[1646788693808,0.77974528,2591.5,2591.3,0.7827454]
[1646788693998,0.77665192,2591.6,2591.3,0.78680092]
[1646788694197,0.77983845,2591.5,2591.3,0.78680092]
[1646788694600,0.77665192,2591.6,2591.3,0.78680092]
[1646788694998,0.77665192,2591.6,2591.4,0.7827454]
[1646788695198,0.77665192,2591.6,2591.5,0.7827454]
[1646788695600,1.55655015,2591.6,2591.3,0.00405557]
[1646788695800,0.77665192,2591.6,2591.3,0.78680097]
[1646788696000,0.77665192,2591.6,2591.4,0.7827454]
[1646788696200,0.77665192,2591.6,2591.5,0.7827454]
[1646788696401,0.77665192,2591.6,2591.1,1.26740534]
[1646788696402,0.77665192,2591.6,2591.3,0.00405552]
[1646788697546,0.77665192,2591.6,2591.3,0.78679768]
[1646788697950,0.77665192,2591.6,2591.4,0.96511]
[1646788698151,0.77665192,2591.6,2591.5,0.7827454]
[1646788698451,1.55674912,2591.6,2591.5,1.95307776]
[1646788698853,0.77665192,2591.6,2591.5,1.95307776]
[1646788702402,1.55705274,2591.6,2591.5,1.95307776]
[1646788703003,0.77665192,2591.6,2591.5,1.95307776]
[1646788703802,0.77665192,2591.6,2591.5,5.45307776]
[1646788705053,0.77665192,2591.6,2591.5,0.7827454]
[1646788705248,0.77510737,2591.6,2591.5,0.7827454]
[1646788705450,0.77510737,2591.6,2591.4,0.00376055]
[1646788705451,1.55683547,2591.6,2591.4,0.00376055]
[1646788705647,0.7817281,2591.5,2591.4,0.00376055]
[1646788705848,0.7817281,2591.5,2591.2,0.7827454]
[1646788708452,0.7817281,2591.5,2591.2,0.78702041]
[1646788709299,0.7817281,2591.5,2591.2,0.7827454]
[1646788709699,0.7817281,2591.5,2591.2,0.78702041]
[1646788709900,1.9253281,2591.5,2591.2,0.78702041]
[1646788710303,0.7817281,2591.4,2591.2,0.78702041]
[1646788710501,0.7817281,2591.4,2591.2,0.7827454]
[1646788710701,0.7817281,2591.4,2591.2,0.78702041]
[1646788711102,1.1436,2591.5,2591.2,0.78702041]
[1646788711500,0.78165176,2591.4,2591.2,0.78702041]
[1646788711704,0.77510737,2591.6,2591.2,0.7827454]
[1646788711905,0.78168155,2591.5,2591.2,0.7827454]
[1646788712104,0.78168155,2591.5,2591.2,0.7868047]
[1646788712303,0.78168155,2591.5,2591.3,0.7827454]
[1646788712553,0.78168155,2591.5,2591.4,0.7827454]
[1646788712758,0.78168155,2591.5,2591.2,0.7868047]
[1646788712962,0.78168155,2591.5,2591.2,0.7827454]
[1646788713160,0.78168155,2591.5,2591.3,0.78666032]
[1646788713362,4.5,2591.3,2590.8,0.20846268]
[1646788713564,4.5,2591.3,2590.9,0.78431269]
[1646788713565,4.28168155,2591.2,2590.9,0.78431269]
[1646788713765,4.28168155,2591.2,2590.6,3.90507341]
[1646788713766,0.85472437,2590.7,2590.6,3.90507341]
[1646788714061,1.70822437,2590.7,2590.6,3.90507341]
[1646788714260,1.70822437,2590.7,2590.0,0.70414601]
[1646788714462,1.70822437,2590.7,2590.2,1.14377594]
[1646788714661,1.65822437,2590.7,2590.2,1.14377594]
[1646788715566,1.65822437,2590.7,2590.2,2.10925594]
[1646788715567,0.80472437,2590.7,2590.2,2.10925594]
[1646788715763,0.80472437,2590.7,2590.2,5.00517594]
[1646788716316,0.80472437,2590.7,2590.2,4.56554601]
[1646788716505,0.80472437,2590.7,2590.2,3.60006601]
[1646788716907,0.80472437,2590.7,2590.3,0.00408538]
[1646788717713,0.80472437,2590.7,2590.2,3.60006601]
[1646788718014,0.80472437,2590.7,2590.4,0.00408532]
[1646788718615,0.80472437,2590.7,2590.4,0.0720904]
[1646788718817,3.5,2590.6,2590.4,0.0720904]
[1646788719014,0.80472437,2590.7,2590.4,0.06800508]
[1646788719015,1.35972437,2590.7,2590.4,0.06800508]
[1646788719415,1.35972437,2590.7,2590.4,0.07208025]
[1646788719814,2.24721199,2590.7,2590.4,0.07208025]
[1646788720257,2.24721199,2590.7,2590.4,0.06800508]
[1646788720454,2.24721199,2590.7,2590.4,0.07208025]
[1646788721456,2.24721199,2590.7,2590.4,0.06800508]
[1646788721756,2.24721199,2590.7,2590.4,0.07194271]
[1646788721957,0.96594,2590.5,2590.0,0.01575293]
[1646788722157,4.055,2590.4,2590.0,0.01575293]
[1646788722358,5.0395,2590.4,2590.0,0.01575293]
[1646788722556,5.0395,2590.4,2589.3,1.85230185]
[1646788723561,1.5395,2590.4,2589.3,1.14815584]